[Event "Early-Titled-Tuesday-Blitz-April-02-2024"]
[Site "Chess.com"]
[Date "2024.04.02"]
[Round "6"]
[White "promen1999"]
[Black "Incognito_Knight"]
[Result "0-1"]
[WhiteElo "2879"]
[BlackElo "2740"]
[TimeControl "180+1"]
[EndTime "9:08:06 PDT"]
[Termination "Incognito_Knight won on time"]

1. d4 {[%clk 0:03:00.9]} 1... d5 {[%clk 0:02:57.2]} 2. c4 {[%clk 0:03:00.8]}
2... e6 {[%clk 0:02:56.5]} 3. Nf3 {[%clk 0:02:58.9]} 3... a6 {[%clk 0:02:56.7]}
4. cxd5 {[%clk 0:02:56.9]} 4... exd5 {[%clk 0:02:57.6]} 5. Bg5 {[%clk
0:02:54.9]} 5... Nf6 {[%clk 0:02:51.9]} 6. e3 {[%clk 0:02:54]} 6... Be6 {[%clk
0:02:45]} 7. Bd3 {[%clk 0:02:52.1]} 7... Nbd7 {[%clk 0:02:43.5]} 8. Nc3 {[%clk
0:02:51.1]} 8... Bd6 {[%clk 0:02:41.9]} 9. h3 {[%clk 0:02:48.5]} 9... c6 {[%clk
0:02:37.7]} 10. O-O {[%clk 0:02:48]} 10... Qc7 {[%clk 0:02:35.6]} 11. Qd2 {[%clk
0:02:48]} 11... O-O {[%clk 0:02:30.7]} 12. Bf4 {[%clk 0:02:42.4]} 12... Rfe8
{[%clk 0:02:19.5]} 13. Rfe1 {[%clk 0:02:25.5]} 13... Nh5 {[%clk 0:01:59.6]} 14.
Bxd6 {[%clk 0:02:23.9]} 14... Qxd6 {[%clk 0:02:00.5]} 15. b4 {[%clk 0:01:56.2]}
15... Nhf6 {[%clk 0:01:54.2]} 16. a4 {[%clk 0:01:55.5]} 16... b5 {[%clk
0:01:44.5]} 17. Qb2 {[%clk 0:01:46.3]} 17... Nb6 {[%clk 0:01:38.7]} 18. Ne5
{[%clk 0:01:39.5]} 18... Nc4 {[%clk 0:01:34.7]} 19. Bxc4 {[%clk 0:01:38.6]}
19... dxc4 {[%clk 0:01:30.1]} 20. Qa3 {[%clk 0:01:14.4]} 20... Rac8 {[%clk
0:01:06.4]} 21. axb5 {[%clk 0:01:13.6]} 21... axb5 {[%clk 0:01:06.4]} 22. Qa5
{[%clk 0:01:03]} 22... h6 {[%clk 0:01:02.4]} 23. Rec1 {[%clk 0:00:59.8]} 23...
Kh7 {[%clk 0:00:46.2]} 24. Rab1 {[%clk 0:00:41.4]} 24... Nd5 {[%clk 0:00:21.1]}
25. Ne4 {[%clk 0:00:37.3]} 25... Qf8 {[%clk 0:00:20.6]} 26. Nc5 {[%clk
0:00:35.6]} 26... Ra8 {[%clk 0:00:20.7]} 27. Na6 {[%clk 0:00:27.1]} 27... Bc8
{[%clk 0:00:14.6]} 28. Nxc6 {[%clk 0:00:27.3]} 28... Bxa6 {[%clk 0:00:10.2]} 29.
Ra1 {[%clk 0:00:25.6]} 29... Qd6 {[%clk 0:00:06.9]} 30. Ne5 {[%clk 0:00:20.7]}
30... Qxb4 {[%clk 0:00:05.8]} 31. Qa2 {[%clk 0:00:20.5]} 31... Bb7 {[%clk
0:00:05.1]} 32. Qc2+ {[%clk 0:00:20.2]} 32... g6 {[%clk 0:00:04.5]} 33. Nxf7
{[%clk 0:00:18.5]} 33... Rxa1 {[%clk 0:00:04.8]} 34. Rxa1 {[%clk 0:00:18.3]}
34... Qc3 {[%clk 0:00:05.1]} 35. Qb1 {[%clk 0:00:17.8]} 35... Qb3 {[%clk
0:00:03.8]} 36. Qc1 {[%clk 0:00:15.4]} 36... Re7 {[%clk 0:00:04]} 37. Nd6 {[%clk
0:00:15.1]} 37... Nc3 {[%clk 0:00:03.9]} 38. Qd2 {[%clk 0:00:13.6]} 38... Ne4
{[%clk 0:00:03.9]} 39. Nxe4 {[%clk 0:00:13.4]} 39... Bxe4 {[%clk 0:00:04.4]} 40.
Qa5 {[%clk 0:00:13.4]} 40... Qd3 {[%clk 0:00:04.3]} 41. Qd8 {[%clk 0:00:13]}
41... Rf7 {[%clk 0:00:03.9]} 42. Qe8 {[%clk 0:00:10.9]} 42... Rg7 {[%clk
0:00:03.3]} 43. Qxb5 {[%clk 0:00:09.4]} 43... c3 {[%clk 0:00:03.6]} 44. Qc5
{[%clk 0:00:07.3]} 44... c2 {[%clk 0:00:03.9]} 45. Kh2 {[%clk 0:00:07.3]} 45...
Qd1 {[%clk 0:00:02.6]} 46. Qc3 {[%clk 0:00:07.2]} 46... Qxa1 {[%clk 0:00:02.1]}
47. Qxa1 {[%clk 0:00:06.9]} 47... Rc7 {[%clk 0:00:02.8]} 48. Qc1 {[%clk
0:00:06.9]} 48... Rb7 {[%clk 0:00:03.4]} 49. f3 {[%clk 0:00:06.8]} 49... Rb1
{[%clk 0:00:03.5]} 50. Qa3 {[%clk 0:00:07.1]} 50... c1=Q {[%clk 0:00:04]} 51.
Qe7+ {[%clk 0:00:07.3]} 51... Kg8 {[%clk 0:00:04.4]} 52. Qe8+ {[%clk 0:00:07.6]}
52... Kg7 {[%clk 0:00:05]} 53. Qe7+ {[%clk 0:00:08]} 53... Kg8 {[%clk
0:00:05.6]} 54. Qxe4 {[%clk 0:00:06.6]} 54... Qg1+ {[%clk 0:00:05.3]} 55. Kg3
{[%clk 0:00:06.8]} 55... Qe1+ {[%clk 0:00:06.2]} 56. Kf4 {[%clk 0:00:06.6]}
56... Qh4+ {[%clk 0:00:05.8]} 57. g4 {[%clk 0:00:06.2]} 57... Qf6+ {[%clk
0:00:05.6]} 58. Kg3 {[%clk 0:00:06.5]} 58... Qd6+ {[%clk 0:00:05.5]} 59. f4
{[%clk 0:00:06.5]} 59... Rb6 {[%clk 0:00:05.2]} 60. Qe8+ {[%clk 0:00:06.4]}
60... Kg7 {[%clk 0:00:05.5]} 61. h4 {[%clk 0:00:06.9]} 61... Qe6 {[%clk
0:00:05.8]} 62. Qxe6 {[%clk 0:00:05.2]} 62... Rxe6 {[%clk 0:00:06.7]} 63. Kf3
{[%clk 0:00:05.9]} 63... Ra6 {[%clk 0:00:07.4]} 64. g5 {[%clk 0:00:04.4]} 64...
h5 {[%clk 0:00:07.9]} 65. d5 {[%clk 0:00:04.3]} 65... Kf7 {[%clk 0:00:08]} 66.
e4 {[%clk 0:00:04.5]} 66... Ra3+ {[%clk 0:00:08.2]} 67. Ke2 {[%clk 0:00:03]}
67... Rh3 {[%clk 0:00:08]} 68. f5 {[%clk 0:00:03]} 68... gxf5 {[%clk 0:00:05.8]}
69. exf5 {[%clk 0:00:02.1]} 69... Rxh4 {[%clk 0:00:06.5]} 70. Ke3 {[%clk
0:00:01.7]} 70... Rg4 {[%clk 0:00:07]} 71. g6+ {[%clk 0:00:02.1]} 71... Kf6
{[%clk 0:00:07.5]} 72. d6 {[%clk 0:00:02.7]} 72... Rg1 {[%clk 0:00:04.6]} 0-1

[Event "Early-Titled-Tuesday-Blitz-April-02-2024"]
[Site "Chess.com"]
[Date "2024.04.02"]
[Round "6"]
[White "Itay121"]
[Black "Mikhail_Golubev"]
[Result "0-1"]
[WhiteElo "2528"]
[BlackElo "2623"]
[TimeControl "180+1"]
[EndTime "9:08:12 PDT"]
[Termination "Mikhail_Golubev won by checkmate"]

1. e4 {[%clk 0:03:00.9]} 1... c5 {[%clk 0:02:59.5]} 2. Nf3 {[%clk 0:03:00.4]}
2... d6 {[%clk 0:02:59.8]} 3. d4 {[%clk 0:02:54.6]} 3... Nf6 {[%clk 0:02:59.3]}
4. dxc5 {[%clk 0:02:49]} 4... Nxe4 {[%clk 0:02:57.9]} 5. cxd6 {[%clk 0:02:44.5]}
5... Nc6 {[%clk 0:02:58.3]} 6. Bd3 {[%clk 0:02:38.7]} 6... Nxd6 {[%clk
0:02:55.2]} 7. O-O {[%clk 0:02:39]} 7... g6 {[%clk 0:02:55.3]} 8. Re1 {[%clk
0:02:34.6]} 8... Bg7 {[%clk 0:02:54.9]} 9. Nc3 {[%clk 0:02:27.7]} 9... O-O
{[%clk 0:02:53.9]} 10. Bg5 {[%clk 0:02:25.8]} 10... h6 {[%clk 0:02:46]} 11. Bh4
{[%clk 0:02:24.2]} 11... Nf5 {[%clk 0:02:37.5]} 12. Bg3 {[%clk 0:02:19.4]} 12...
Nxg3 {[%clk 0:02:35.3]} 13. hxg3 {[%clk 0:02:20.3]} 13... Bg4 {[%clk 0:02:21.8]}
14. Bc4 {[%clk 0:02:01.6]} 14... Nd4 {[%clk 0:01:58.2]} 15. Be2 {[%clk
0:01:25.3]} 15... Nxe2+ {[%clk 0:01:54.5]} 16. Qxe2 {[%clk 0:01:26.2]} 16... e6
{[%clk 0:01:38.3]} 17. Qe4 {[%clk 0:01:25.7]} 17... Bf5 {[%clk 0:01:37.4]} 18.
Qxb7 {[%clk 0:01:20.1]} 18... Rb8 {[%clk 0:01:32.1]} 19. Qxa7 {[%clk 0:01:18.4]}
19... Rxb2 {[%clk 0:01:29.6]} 20. Rad1 {[%clk 0:01:18.7]} 20... Qc8 {[%clk
0:01:20.5]} 21. Ne4 {[%clk 0:01:12.5]} 21... Bxe4 {[%clk 0:00:44.1]} 22. Rxe4
{[%clk 0:01:13.4]} 22... Qxc2 {[%clk 0:00:43.9]} 23. Rde1 {[%clk 0:00:50.5]}
23... Rxa2 {[%clk 0:00:42.2]} 24. Qe3 {[%clk 0:00:49.5]} 24... Rd8 {[%clk
0:00:32.7]} 25. g4 {[%clk 0:00:33.7]} 25... Rd1 {[%clk 0:00:29]} 26. g3 {[%clk
0:00:30.3]} 26... Rd3 {[%clk 0:00:17.3]} 27. Qe2 {[%clk 0:00:22.2]} 27... Qxe2
{[%clk 0:00:16.7]} 28. R1xe2 {[%clk 0:00:19.4]} 28... Rxe2 {[%clk 0:00:17.2]}
29. Rxe2 {[%clk 0:00:18.8]} 29... Rxf3 {[%clk 0:00:17.3]} 30. Kg2 {[%clk
0:00:19.5]} 30... Rf6 {[%clk 0:00:17]} 31. Ra2 {[%clk 0:00:20]} 31... g5 {[%clk
0:00:16.4]} 32. Ra8+ {[%clk 0:00:17.9]} 32... Kh7 {[%clk 0:00:16.6]} 33. Ra7
{[%clk 0:00:18.7]} 33... Kg6 {[%clk 0:00:16.6]} 34. f3 {[%clk 0:00:18.6]} 34...
e5 {[%clk 0:00:16.2]} 35. Ra5 {[%clk 0:00:18.5]} 35... Rd6 {[%clk 0:00:16.1]}
36. Kh3 {[%clk 0:00:17.6]} 36... h5 {[%clk 0:00:14.4]} 37. gxh5+ {[%clk
0:00:17]} 37... Kxh5 {[%clk 0:00:15.3]} 38. g4+ {[%clk 0:00:17.2]} 38... Kg6
{[%clk 0:00:15.7]} 39. Kg3 {[%clk 0:00:17.7]} 39... Bf6 {[%clk 0:00:15.6]} 40.
Ra8 {[%clk 0:00:17.6]} 40... Rd4 {[%clk 0:00:15.4]} 41. Ra6 {[%clk 0:00:16.9]}
41... e4 {[%clk 0:00:14.3]} 42. fxe4 {[%clk 0:00:13.3]} 42... Rxe4 {[%clk
0:00:14.9]} 43. Rb6 {[%clk 0:00:12.6]} 43... Re3+ {[%clk 0:00:14.2]} 44. Kg2
{[%clk 0:00:12.9]} 44... Rc3 {[%clk 0:00:14]} 45. Ra6 {[%clk 0:00:12.9]} 45...
Kg7 {[%clk 0:00:14.2]} 46. Rd6 {[%clk 0:00:11]} 46... Be5 {[%clk 0:00:13.3]} 47.
Rd5 {[%clk 0:00:09.3]} 47... Bf4 {[%clk 0:00:13.3]} 48. Kf2 {[%clk 0:00:05.9]}
48... Rg3 {[%clk 0:00:11.8]} 49. Rxg5+ {[%clk 0:00:05.6]} 49... Bxg5 {[%clk
0:00:11.8]} 50. Kxg3 {[%clk 0:00:06.3]} 50... Kf6 {[%clk 0:00:12]} 51. Kf3
{[%clk 0:00:07]} 51... Ke5 {[%clk 0:00:12.3]} 52. Kg3 {[%clk 0:00:07.7]} 52...
Ke4 {[%clk 0:00:12.7]} 53. Kg2 {[%clk 0:00:07]} 53... Kf4 {[%clk 0:00:12.7]} 54.
Kh3 {[%clk 0:00:07.5]} 54... Kf3 {[%clk 0:00:13.1]} 55. Kh2 {[%clk 0:00:08.2]}
55... Kxg4 {[%clk 0:00:13.7]} 56. Kg2 {[%clk 0:00:09.1]} 56... f5 {[%clk
0:00:13.9]} 57. Kf2 {[%clk 0:00:09.7]} 57... f4 {[%clk 0:00:14]} 58. Kg2 {[%clk
0:00:10.6]} 58... f3+ {[%clk 0:00:13.9]} 59. Kf2 {[%clk 0:00:11.5]} 59... Bh4+
{[%clk 0:00:13.1]} 60. Kg1 {[%clk 0:00:11]} 60... Be7 {[%clk 0:00:10.5]} 61. Kh1
{[%clk 0:00:11.9]} 61... Bc5 {[%clk 0:00:09.3]} 62. Kh2 {[%clk 0:00:11.8]} 62...
Kf4 {[%clk 0:00:09.3]} 63. Kh3 {[%clk 0:00:10.1]} 63... Ke3 {[%clk 0:00:09.4]}
64. Kg3 {[%clk 0:00:10.1]} 64... f2 {[%clk 0:00:08.7]} 65. Kg2 {[%clk
0:00:09.7]} 65... Ke2 {[%clk 0:00:08.8]} 66. Kh2 {[%clk 0:00:10.4]} 66... f1=Q
{[%clk 0:00:08.1]} 67. Kg3 {[%clk 0:00:11.3]} 67... Qf2+ {[%clk 0:00:07.7]} 68.
Kg4 {[%clk 0:00:12.2]} 68... Qf3+ {[%clk 0:00:07.7]} 69. Kh4 {[%clk 0:00:12.1]}
69... Bf2+ {[%clk 0:00:06.5]} 70. Kg5 {[%clk 0:00:11.8]} 70... Qe4 {[%clk
0:00:06.1]} 71. Kh5 {[%clk 0:00:11.8]} 71... Qf4 {[%clk 0:00:05.8]} 72. Kg6
{[%clk 0:00:12.7]} 72... Qe5 {[%clk 0:00:06.2]} 73. Kh6 {[%clk 0:00:12.3]} 73...
Qf5 {[%clk 0:00:06.4]} 74. Kg7 {[%clk 0:00:12.6]} 74... Qe6 {[%clk 0:00:06.1]}
75. Kf8 {[%clk 0:00:12.5]} 75... Qd7 {[%clk 0:00:05.4]} 76. Kg8 {[%clk
0:00:13.2]} 76... Bc5 {[%clk 0:00:04.5]} 77. Kh8 {[%clk 0:00:13.2]} 77... Bd4+
{[%clk 0:00:05]} 78. Kg8 {[%clk 0:00:13.4]} 78... Qg7# {[%clk 0:00:05.7]} 0-1

[Event "Early-Titled-Tuesday-Blitz-April-02-2024"]
[Site "Chess.com"]
[Date "2024.04.02"]
[Round "6"]
[White "MikeSailer"]
[Black "visa"]
[Result "1-0"]
[WhiteElo "2163"]
[BlackElo "2358"]
[TimeControl "180+1"]
[EndTime "9:08:15 PDT"]
[Termination "MikeSailer won on time"]

1. d4 {[%clk 0:03:00.1]} 1... e6 {[%clk 0:02:56.9]} 2. Nf3 {[%clk 0:02:58.7]}
2... b6 {[%clk 0:02:57.2]} 3. Bf4 {[%clk 0:02:55.9]} 3... Bb7 {[%clk 0:02:57.2]}
4. e3 {[%clk 0:02:56.6]} 4... Nf6 {[%clk 0:02:57.6]} 5. Be2 {[%clk 0:02:57.3]}
5... Be7 {[%clk 0:02:56.3]} 6. O-O {[%clk 0:02:57.6]} 6... Nh5 {[%clk
0:02:53.9]} 7. c3 {[%clk 0:02:38.5]} 7... Nxf4 {[%clk 0:02:53.1]} 8. exf4 {[%clk
0:02:38.4]} 8... O-O {[%clk 0:02:51.8]} 9. a4 {[%clk 0:02:36.8]} 9... a6 {[%clk
0:02:50.7]} 10. a5 {[%clk 0:02:35.1]} 10... b5 {[%clk 0:02:50.5]} 11. Nbd2
{[%clk 0:02:32.6]} 11... d6 {[%clk 0:02:49.4]} 12. Re1 {[%clk 0:02:28.3]} 12...
Nd7 {[%clk 0:02:48.8]} 13. Bd3 {[%clk 0:02:21.1]} 13... Nf6 {[%clk 0:02:34.6]}
14. Ne4 {[%clk 0:02:08.9]} 14... Nxe4 {[%clk 0:02:32.4]} 15. Bxe4 {[%clk
0:02:08.7]} 15... Bxe4 {[%clk 0:02:32]} 16. Rxe4 {[%clk 0:02:08.6]} 16... h6
{[%clk 0:02:28.4]} 17. Qe2 {[%clk 0:02:08.3]} 17... c6 {[%clk 0:02:24.4]} 18. f5
{[%clk 0:02:04.8]} 18... d5 {[%clk 0:02:20.8]} 19. Re3 {[%clk 0:01:59.2]} 19...
Bd6 {[%clk 0:01:57.9]} 20. fxe6 {[%clk 0:01:55.5]} 20... fxe6 {[%clk 0:01:58.2]}
21. Rxe6 {[%clk 0:01:51.7]} 21... Qd7 {[%clk 0:01:49.9]} 22. Re1 {[%clk
0:01:48.7]} 22... b4 {[%clk 0:01:44]} 23. c4 {[%clk 0:01:42]} 23... Bc7 {[%clk
0:01:32.1]} 24. Re7 {[%clk 0:01:35.1]} 24... Qd6 {[%clk 0:01:32.3]} 25. Qe6+
{[%clk 0:01:07.8]} 25... Qxe6 {[%clk 0:01:26.8]} 26. R1xe6 {[%clk 0:01:07.4]}
26... Bd8 {[%clk 0:01:12.4]} 27. Rb7 {[%clk 0:00:56.4]} 27... dxc4 {[%clk
0:01:01.9]} 28. Rxc6 {[%clk 0:00:40]} 28... Bxa5 {[%clk 0:01:01.4]} 29. Rxc4
{[%clk 0:00:33.9]} 29... Rac8 {[%clk 0:00:57.4]} 30. b3 {[%clk 0:00:23]} 30...
Rxc4 {[%clk 0:00:47.7]} 31. bxc4 {[%clk 0:00:23.1]} 31... Rc8 {[%clk 0:00:48.3]}
32. c5 {[%clk 0:00:23.2]} 32... Rc7 {[%clk 0:00:49]} 33. Rb8+ {[%clk 0:00:17]}
33... Kf7 {[%clk 0:00:46.8]} 34. Ra8 {[%clk 0:00:15.8]} 34... b3 {[%clk
0:00:42.4]} 35. Rb8 {[%clk 0:00:10]} 35... Ke6 {[%clk 0:00:35.2]} 36. Rxb3
{[%clk 0:00:09.8]} 36... Kd5 {[%clk 0:00:35.6]} 37. Ra3 {[%clk 0:00:09.5]} 37...
Rb7 {[%clk 0:00:32.7]} 38. g3 {[%clk 0:00:08]} 38... Rb5 {[%clk 0:00:32.4]} 39.
Re3 {[%clk 0:00:06.6]} 39... Bb4 {[%clk 0:00:30]} 40. Re5+ {[%clk 0:00:06.6]}
40... Kc4 {[%clk 0:00:30.2]} 41. c6 {[%clk 0:00:06.1]} 41... Rxe5 {[%clk
0:00:23.8]} 42. Nxe5+ {[%clk 0:00:06.2]} 42... Kxd4 {[%clk 0:00:22.6]} 43. c7
{[%clk 0:00:06.7]} 43... a5 {[%clk 0:00:21.7]} 44. c8=Q {[%clk 0:00:07.2]} 44...
Kxe5 {[%clk 0:00:22.2]} 45. Qc4 {[%clk 0:00:06]} 45... Kf6 {[%clk 0:00:21.9]}
46. Kg2 {[%clk 0:00:05.3]} 46... g6 {[%clk 0:00:21.9]} 47. h4 {[%clk 0:00:05.7]}
47... h5 {[%clk 0:00:21.6]} 48. Qb5 {[%clk 0:00:06.2]} 48... Kg7 {[%clk
0:00:17.7]} 49. Kf3 {[%clk 0:00:06.7]} 49... Kh6 {[%clk 0:00:18.6]} 50. Ke4
{[%clk 0:00:07.2]} 50... Kg7 {[%clk 0:00:18.4]} 51. f3 {[%clk 0:00:07.8]} 51...
Kf7 {[%clk 0:00:18.4]} 52. g4 {[%clk 0:00:08.4]} 52... Kg7 {[%clk 0:00:19.3]}
53. g5 {[%clk 0:00:08.8]} 53... Kf7 {[%clk 0:00:19.1]} 54. f4 {[%clk 0:00:09]}
54... Ke7 {[%clk 0:00:16.9]} 55. f5 {[%clk 0:00:09.6]} 55... Kf7 {[%clk
0:00:17.8]} 56. f6 {[%clk 0:00:08.8]} 56... Ke6 {[%clk 0:00:17.5]} 57. Qc6+
{[%clk 0:00:08.6]} 57... Kf7 {[%clk 0:00:17.1]} 58. Qd7+ {[%clk 0:00:09.2]}
58... Kf8 {[%clk 0:00:16.9]} 59. Qg7+ {[%clk 0:00:08.4]} 59... Ke8 {[%clk
0:00:17.3]} 60. Qxg6+ {[%clk 0:00:08.7]} 60... Kd7 {[%clk 0:00:18]} 61. Qf5+
{[%clk 0:00:08.5]} 61... Kc6 {[%clk 0:00:17.9]} 62. Qd5+ {[%clk 0:00:08.8]}
62... Kb6 {[%clk 0:00:17.9]} 63. f7 {[%clk 0:00:09]} 63... a4 {[%clk 0:00:18.2]}
64. g6 {[%clk 0:00:08.3]} 64... Bf8 {[%clk 0:00:14]} 65. Qd8+ {[%clk 0:00:05.9]}
65... Kb5 {[%clk 0:00:13.2]} 66. Qxf8 {[%clk 0:00:06.7]} 66... a3 {[%clk
0:00:13.9]} 67. Qxa3 {[%clk 0:00:06.7]} 67... Kc4 {[%clk 0:00:14.2]} 68. Qd3+
{[%clk 0:00:06]} 68... Kc5 {[%clk 0:00:14.3]} 69. Qd5+ {[%clk 0:00:06.4]} 69...
Kb6 {[%clk 0:00:14.3]} 70. f8=Q {[%clk 0:00:05.6]} 1-0

[Event "Early-Titled-Tuesday-Blitz-April-02-2024"]
[Site "Chess.com"]
[Date "2024.04.02"]
[Round "6"]
[White "Rodalquilar"]
[Black "Keeper0416"]
[Result "1-0"]
[WhiteElo "2734"]
[BlackElo "2560"]
[TimeControl "180+1"]
[EndTime "9:08:17 PDT"]
[Termination "Rodalquilar won by resignation"]

1. d4 {[%clk 0:03:00.9]} 1... Nf6 {[%clk 0:02:59.2]} 2. Nf3 {[%clk 0:03:01.4]}
2... g6 {[%clk 0:02:56.4]} 3. Bf4 {[%clk 0:03:01.4]} 3... d5 {[%clk 0:02:54.5]}
4. e3 {[%clk 0:03:01.5]} 4... Bg7 {[%clk 0:02:54.4]} 5. Be2 {[%clk 0:03:02.1]}
5... O-O {[%clk 0:02:54.6]} 6. O-O {[%clk 0:03:02.4]} 6... c5 {[%clk 0:02:54.9]}
7. c3 {[%clk 0:03:02.9]} 7... Nc6 {[%clk 0:02:54.3]} 8. h3 {[%clk 0:03:03.5]}
8... Nd7 {[%clk 0:02:48.5]} 9. Nbd2 {[%clk 0:03:03.8]} 9... e5 {[%clk
0:02:46.4]} 10. dxe5 {[%clk 0:03:04.7]} 10... Ndxe5 {[%clk 0:02:46.5]} 11. Nxe5
{[%clk 0:03:05.2]} 11... Nxe5 {[%clk 0:02:47.4]} 12. Nf3 {[%clk 0:03:05.7]}
12... Nc6 {[%clk 0:02:47]} 13. Qb3 {[%clk 0:03:05.8]} 13... b6 {[%clk
0:02:19.2]} 14. Rfd1 {[%clk 0:03:04.8]} 14... Ne7 {[%clk 0:02:10.2]} 15. e4
{[%clk 0:02:38.1]} 15... Be6 {[%clk 0:01:51.6]} 16. exd5 {[%clk 0:02:34.1]}
16... Nxd5 {[%clk 0:01:43.7]} 17. Bc4 {[%clk 0:02:20.4]} 17... Nxf4 {[%clk
0:01:37.9]} 18. Rxd8 {[%clk 0:02:21]} 18... Rfxd8 {[%clk 0:01:32.2]} 19. Bxe6
{[%clk 0:02:21.3]} 19... Nxe6 {[%clk 0:01:33.1]} 20. Qa4 {[%clk 0:02:21.4]}
20... Rd6 {[%clk 0:01:25.5]} 21. Re1 {[%clk 0:02:20.8]} 21... a6 {[%clk
0:01:21.8]} 22. Qe4 {[%clk 0:02:19.6]} 22... Rad8 {[%clk 0:01:19.6]} 23. a4
{[%clk 0:02:20.1]} 23... Rb8 {[%clk 0:00:55.9]} 24. Ne5 {[%clk 0:01:53.5]} 24...
Bxe5 {[%clk 0:00:52]} 25. Qxe5 {[%clk 0:01:53.8]} 25... Rbd8 {[%clk 0:00:52.6]}
26. Qe2 {[%clk 0:01:51.4]} 26... a5 {[%clk 0:00:48.1]} 27. Qb5 {[%clk
0:01:42.5]} 27... Nc7 {[%clk 0:00:36.3]} 28. Qc4 {[%clk 0:01:30.9]} 28... Ne6
{[%clk 0:00:36]} 29. Qa6 {[%clk 0:01:29.9]} 29... Kg7 {[%clk 0:00:29.4]} 30. g3
{[%clk 0:01:26.1]} 30... h5 {[%clk 0:00:29.5]} 31. h4 {[%clk 0:01:26.1]} 31...
R8d7 {[%clk 0:00:29]} 32. Kg2 {[%clk 0:01:26]} 32... Rd8 {[%clk 0:00:28]} 33.
Re2 {[%clk 0:01:26.3]} 33... R8d7 {[%clk 0:00:27.7]} 34. Qc4 {[%clk 0:01:19.5]}
34... Rd8 {[%clk 0:00:26]} 35. f3 {[%clk 0:01:13]} 35... R8d7 {[%clk 0:00:20.2]}
36. Kf2 {[%clk 0:01:13.5]} 36... Rd5 {[%clk 0:00:19.6]} 37. Qe4 {[%clk
0:01:08.1]} 37... Kh7 {[%clk 0:00:14.9]} 38. Qc2 {[%clk 0:00:56.4]} 38... R5d6
{[%clk 0:00:14.2]} 39. Qc1 {[%clk 0:00:51.9]} 39... Kg7 {[%clk 0:00:13.1]} 40.
g4 {[%clk 0:00:51.5]} 40... Rd5 {[%clk 0:00:13.1]} 41. Qe3 {[%clk 0:00:50.6]}
41... Kh7 {[%clk 0:00:12.5]} 42. Qe4 {[%clk 0:00:40.7]} 42... Kg7 {[%clk
0:00:11.1]} 43. Qc4 {[%clk 0:00:40.8]} 43... Kh7 {[%clk 0:00:10.5]} 44. Kg3
{[%clk 0:00:31.2]} 44... hxg4 {[%clk 0:00:06.7]} 45. fxg4 {[%clk 0:00:31.4]}
45... Rd3+ {[%clk 0:00:07.2]} 46. Kg2 {[%clk 0:00:28.2]} 46... Kg7 {[%clk
0:00:04.9]} 47. Rf2 {[%clk 0:00:21.8]} 47... R3d5 {[%clk 0:00:02.9]} 48. Qe4
{[%clk 0:00:20.1]} 48... g5 {[%clk 0:00:02.7]} 49. h5 {[%clk 0:00:20]} 49...
Nf4+ {[%clk 0:00:02.8]} 50. Kh2 {[%clk 0:00:15.3]} 50... R7d6 {[%clk 0:00:03.4]}
51. Qe7 {[%clk 0:00:12.7]} 51... Re6 {[%clk 0:00:03.2]} 52. Qb7 {[%clk
0:00:11.5]} 52... Kg8 {[%clk 0:00:01.1]} 53. Qa8+ {[%clk 0:00:09]} 53... Kg7
{[%clk 0:00:01.2]} 54. Qc8 {[%clk 0:00:09.3]} 54... Rde5 {[%clk 0:00:01.4]} 55.
Qd8 {[%clk 0:00:08]} 55... c4 {[%clk 0:00:01.5]} 56. Qd4 {[%clk 0:00:07.4]}
56... Kh6 {[%clk 0:00:01.5]} 57. Qxc4 {[%clk 0:00:06.8]} 57... Rc5 {[%clk
0:00:01.5]} 58. Qd4 {[%clk 0:00:06.1]} 58... f6 {[%clk 0:00:01.7]} 59. Qd8
{[%clk 0:00:06.1]} 59... Kg7 {[%clk 0:00:02.4]} 60. Qd7+ {[%clk 0:00:06.4]}
60... Kf8 {[%clk 0:00:02.8]} 61. h6 {[%clk 0:00:05.9]} 61... Re7 {[%clk
0:00:03.1]} 62. Qd6 {[%clk 0:00:05.5]} 62... Rc7 {[%clk 0:00:03.6]} 63. Qxf6+
{[%clk 0:00:05.4]} 63... Rf7 {[%clk 0:00:03.7]} 64. Qxg5 {[%clk 0:00:05.2]}
64... Ne6 {[%clk 0:00:04.3]} 65. Rxf7+ {[%clk 0:00:04.8]} 65... Rxf7 {[%clk
0:00:05.2]} 66. Qd2 {[%clk 0:00:04]} 66... Ke7 {[%clk 0:00:05.4]} 67. Qe3 {[%clk
0:00:04.4]} 67... Kf6 {[%clk 0:00:05.9]} 68. Qxb6 {[%clk 0:00:03.7]} 68... Rh7
{[%clk 0:00:05.5]} 69. Qxa5 {[%clk 0:00:02.6]} 69... Rxh6+ {[%clk 0:00:05.5]}
70. Kg3 {[%clk 0:00:03.3]} 70... Ng5 {[%clk 0:00:05.8]} 71. Qf5+ {[%clk
0:00:03.4]} 71... Ke7 {[%clk 0:00:06.3]} 72. Qxg5+ {[%clk 0:00:04]} 72... Kd6
{[%clk 0:00:07.2]} 1-0